[Event "*** Titled Tuesday Blitz"]
[Site "Chess.com"]
[Date "2018.05.01"]
[Round "9"]
[White "PchelkinVK"]
[Black "EmreDedebas"]
[Result "1/2-1/2"]
[WhiteElo "2405"]
[BlackElo "2365"]
[TimeControl "180+2"]
[EndTime "14:57:07 PDT"]
[Termination "Game drawn by repetition"]

1. d4 {[%clk 0:03:01.9]} 1... Nf6 {[%clk 0:02:59.5]} 2. Nc3 {[%clk 0:03:03]}
2... d5 {[%clk 0:03:00.3]} 3. Bf4 {[%clk 0:03:03.3]} 3... e6 {[%clk 0:02:48.5]}
4. a3 {[%clk 0:03:01.6]} 4... a6 {[%clk 0:02:48.6]} 5. Nf3 {[%clk 0:02:59.6]}
5... c5 {[%clk 0:02:49.5]} 6. e3 {[%clk 0:03:00.4]} 6... Nc6 {[%clk 0:02:50.8]}
7. Bd3 {[%clk 0:03:00.9]} 7... Bd6 {[%clk 0:02:50.7]} 8. dxc5 {[%clk 0:03:01.8]}
8... Bxc5 {[%clk 0:02:47.8]} 9. Qe2 {[%clk 0:03:02.7]} 9... O-O {[%clk
0:02:48.8]} 10. O-O-O {[%clk 0:03:02.9]} 10... Qe7 {[%clk 0:02:49]} 11. Bg5
{[%clk 0:03:03.3]} 11... h6 {[%clk 0:02:42.5]} 12. Bh4 {[%clk 0:03:03.2]} 12...
Rd8 {[%clk 0:02:42.2]} 13. e4 {[%clk 0:02:58.8]} 13... Bxa3 {[%clk 0:02:37.1]}
14. bxa3 {[%clk 0:02:36.1]} 14... Qxa3+ {[%clk 0:02:36.4]} 15. Kd2 {[%clk
0:02:37.3]} 15... dxe4 {[%clk 0:02:36.6]} 16. Nxe4 {[%clk 0:02:20.8]} 16... Qb4+
{[%clk 0:02:08.7]} 17. Kc1 {[%clk 0:02:17.2]} 17... Qa3+ {[%clk 0:02:07.9]} 18.
Kd2 {[%clk 0:01:50.8]} 18... Qb4+ {[%clk 0:02:08.3]} 19. Kc1 {[%clk 0:01:51.4]}
19... Qa3+ {[%clk 0:02:09.1]} 20. Kb1 {[%clk 0:01:40.3]} 20... Qb4+ {[%clk
0:02:11]} 21. Kc1 {[%clk 0:01:34.9]} 21... Qa3+ {[%clk 0:02:11]} 22. Kb1 {[%clk
0:01:35.6]} 22... Qb4+ {[%clk 0:02:03]} 23. Kc1 {[%clk 0:01:30.4]} 23... Qa3+
{[%clk 0:02:03.1]} 24. Kb1 {[%clk 0:01:30]} 24... Qb4+ {[%clk 0:02:03]} 1/2-1/2

[Event "*** Titled Tuesday Blitz"]
[Site "Chess.com"]
[Date "2018.05.01"]
[Round "9"]
[White "Vusatiuk_Vladimir"]
[Black "Bad4life"]
[Result "0-1"]
[WhiteElo "2173"]
[BlackElo "2377"]
[TimeControl "180+2"]
[EndTime "14:57:09 PDT"]
[Termination "Bad4life won by resignation"]

1. e4 {[%clk 0:03:01.9]} 1... d6 {[%clk 0:03:00.8]} 2. d4 {[%clk 0:03:02.5]}
2... Nf6 {[%clk 0:03:01.7]} 3. Nc3 {[%clk 0:03:03.2]} 3... g6 {[%clk 0:03:03.2]}
4. Be3 {[%clk 0:03:04.5]} 4... a6 {[%clk 0:03:03.9]} 5. Qd2 {[%clk 0:03:05.6]}
5... b5 {[%clk 0:03:05]} 6. a3 {[%clk 0:03:06.5]} 6... Bb7 {[%clk 0:03:06.2]} 7.
f3 {[%clk 0:03:06.9]} 7... Nbd7 {[%clk 0:03:07.7]} 8. Bh6 {[%clk 0:03:06.9]}
8... c5 {[%clk 0:03:05.8]} 9. Bxf8 {[%clk 0:03:06.8]} 9... Nxf8 {[%clk
0:03:04.5]} 10. dxc5 {[%clk 0:03:07.3]} 10... dxc5 {[%clk 0:03:06.4]} 11. O-O-O
{[%clk 0:03:08.3]} 11... Qxd2+ {[%clk 0:03:05.8]} 12. Rxd2 {[%clk 0:03:09.5]}
12... e6 {[%clk 0:03:03.7]} 13. Nge2 {[%clk 0:03:09.9]} 13... N8d7 {[%clk
0:03:04.4]} 14. Nf4 {[%clk 0:03:10]} 14... Ne5 {[%clk 0:03:04.5]} 15. Be2 {[%clk
0:03:10.6]} 15... g5 {[%clk 0:03:00.4]} 16. Nd3 {[%clk 0:03:11.2]} 16... Nc4
{[%clk 0:03:01.1]} 17. Rdd1 {[%clk 0:03:10.7]} 17... Ne3 {[%clk 0:03:01.1]} 18.
Rd2 {[%clk 0:03:00.5]} 18... Rc8 {[%clk 0:02:59.2]} 19. g3 {[%clk 0:03:00.7]}
19... Ke7 {[%clk 0:02:57.9]} 20. b3 {[%clk 0:02:56.3]} 20... Rhd8 {[%clk
0:02:57.8]} 21. e5 {[%clk 0:02:52.4]} 21... Nfg4 {[%clk 0:02:53.2]} 22. Re1
{[%clk 0:02:49.4]} 22... Nxh2 {[%clk 0:02:44.6]} 23. f4 {[%clk 0:02:35.2]} 23...
c4 {[%clk 0:02:34.1]} 24. bxc4 {[%clk 0:02:26.8]} 24... Nxc4 {[%clk 0:02:34.1]}
25. Rdd1 {[%clk 0:02:24.5]} 25... Ne3 {[%clk 0:02:34.8]} 26. Kb2 {[%clk
0:02:23.8]} 26... Nxd1+ {[%clk 0:02:34.4]} 27. Bxd1 {[%clk 0:02:24.2]} 27... g4
{[%clk 0:02:19.1]} 28. Nf2 {[%clk 0:02:20.6]} 28... h5 {[%clk 0:02:18.3]} 29.
Nce4 {[%clk 0:02:19.9]} 29... Rc6 {[%clk 0:02:01.3]} 30. Nd6 {[%clk 0:02:19.5]}
30... Rcxd6 {[%clk 0:01:52.8]} 31. exd6+ {[%clk 0:02:20.4]} 31... Rxd6 {[%clk
0:01:54.7]} 32. Ne4 {[%clk 0:02:21.6]} 32... Bxe4 {[%clk 0:01:54.7]} 0-1

[Event "*** Titled Tuesday Blitz"]
[Site "Chess.com"]
[Date "2018.05.01"]
[Round "9"]
[White "el-reptiliano"]
[Black "TheCount"]
[Result "0-1"]
[WhiteElo "1714"]
[BlackElo "2538"]
[TimeControl "180+2"]
[EndTime "14:57:25 PDT"]
[Termination "TheCount won by checkmate"]

1. d4 {[%clk 0:03:01.9]} 1... Nf6 {[%clk 0:02:41.1]} 2. c4 {[%clk 0:03:02.2]}
2... g6 {[%clk 0:02:39.9]} 3. Nc3 {[%clk 0:02:58.5]} 3... d5 {[%clk 0:01:36.7]}
4. cxd5 {[%clk 0:02:59.9]} 4... Nxd5 {[%clk 0:01:37]} 5. Bd2 {[%clk 0:02:56.3]}
5... Bg7 {[%clk 0:01:34.8]} 6. Nf3 {[%clk 0:02:51.7]} 6... O-O {[%clk
0:01:34.1]} 7. e4 {[%clk 0:02:44.6]} 7... Nb6 {[%clk 0:01:28.7]} 8. Bg5 {[%clk
0:02:33.6]} 8... Bg4 {[%clk 0:01:19.8]} 9. e5 {[%clk 0:02:34]} 9... Nc6 {[%clk
0:01:18.2]} 10. Ne2 {[%clk 0:02:25.6]} 10... f6 {[%clk 0:01:15.6]} 11. exf6
{[%clk 0:02:24.6]} 11... exf6 {[%clk 0:01:17.5]} 12. Bf4 {[%clk 0:02:21.6]}
12... Re8 {[%clk 0:01:17.5]} 13. Qb3+ {[%clk 0:02:18.4]} 13... Be6 {[%clk
0:01:17.1]} 14. Qc2 {[%clk 0:02:06.2]} 14... Nb4 {[%clk 0:01:07.3]} 15. Qxc7
{[%clk 0:02:00.3]} 15... Qxc7 {[%clk 0:01:04.5]} 16. Bxc7 {[%clk 0:01:59.7]}
16... Nc2+ {[%clk 0:01:06.1]} 17. Kd2 {[%clk 0:01:58.9]} 17... Nxa1 {[%clk
0:01:08]} 18. Nc3 {[%clk 0:01:55]} 18... Nd5 {[%clk 0:01:05.3]} 19. Nxd5 {[%clk
0:01:51.4]} 19... Bxd5 {[%clk 0:01:07.2]} 20. Bd3 {[%clk 0:01:51.8]} 20... Rac8
{[%clk 0:01:02.9]} 21. Ba5 {[%clk 0:01:51.5]} 21... Bh6+ {[%clk 0:01:02.9]} 22.
Kd1 {[%clk 0:01:49]} 22... Rc1# {[%clk 0:01:03.5]} 0-1

[Event "*** Titled Tuesday Blitz"]
[Site "Chess.com"]
[Date "2018.05.01"]
[Round "9"]
[White "PowerThinking2650"]
[Black "aa175"]
[Result "1-0"]
[WhiteElo "2280"]
[BlackElo "1848"]
[TimeControl "180+2"]
[EndTime "14:57:27 PDT"]
[Termination "PowerThinking2650 won by resignation"]

1. e4 {[%clk 0:03:01.9]} 1... e5 {[%clk 0:02:51.1]} 2. Nf3 {[%clk 0:03:01.6]}
2... Nc6 {[%clk 0:02:51.4]} 3. d4 {[%clk 0:03:02.5]} 3... exd4 {[%clk
0:02:51.6]} 4. Nxd4 {[%clk 0:03:03.6]} 4... Nxd4 {[%clk 0:02:53.5]} 5. Qxd4
{[%clk 0:03:03.9]} 5... d6 {[%clk 0:02:55.4]} 6. Nc3 {[%clk 0:02:55.7]} 6... Nf6
{[%clk 0:02:55.7]} 7. Bg5 {[%clk 0:02:53.5]} 7... Be7 {[%clk 0:02:50.6]} 8.
O-O-O {[%clk 0:02:47.5]} 8... h6 {[%clk 0:02:50.8]} 9. Bf4 {[%clk 0:02:42.6]}
9... Be6 {[%clk 0:02:43.4]} 10. Bb5+ {[%clk 0:02:36.4]} 10... Bd7 {[%clk
0:02:35.5]} 11. Bxd7+ {[%clk 0:02:26.8]} 11... Qxd7 {[%clk 0:02:37.3]} 12. e5
{[%clk 0:02:26.4]} 12... dxe5 {[%clk 0:02:37.2]} 13. Qxe5 {[%clk 0:02:24.5]}
13... Qe6 {[%clk 0:02:17.7]} 14. Qb5+ {[%clk 0:02:24.1]} 14... Qc6 {[%clk
0:02:14.8]} 15. Rhe1 {[%clk 0:02:16]} 15... g5 {[%clk 0:02:12.3]} 16. Bxc7
{[%clk 0:02:05.2]} 16... Rc8 {[%clk 0:02:02.4]} 17. Qxc6+ {[%clk 0:01:50.4]}
17... bxc6 {[%clk 0:02:04.3]} 18. Bd6 {[%clk 0:01:47.6]} 18... Ng8 {[%clk
0:02:05.8]} 19. Ne4 {[%clk 0:01:42.5]} 19... Kf8 {[%clk 0:02:02.6]} 20. Bxe7+
{[%clk 0:01:35.4]} 20... Nxe7 {[%clk 0:02:04.5]} 21. Nd6 {[%clk 0:01:24.8]}
21... Rd8 {[%clk 0:02:00.5]} 22. c4 {[%clk 0:01:15.8]} 22... Kg7 {[%clk
0:01:58.8]} 23. Rxe7 {[%clk 0:01:15.3]} 23... Kf6 {[%clk 0:01:54.1]} 24. Re3
{[%clk 0:01:05.6]} 24... Rhe8 {[%clk 0:01:54]} 25. Nxe8+ {[%clk 0:01:04.7]}
25... Rxe8 {[%clk 0:01:55.9]} 1-0

[Event "*** Titled Tuesday Blitz"]
[Site "Chess.com"]
[Date "2018.05.01"]
[Round "9"]
[White "MasterLeif"]
[Black "ghost_of_pushwood"]
[Result "1-0"]
[WhiteElo "2367"]
[BlackElo "1839"]
[TimeControl "180+2"]
[EndTime "14:57:32 PDT"]
[Termination "MasterLeif won by resignation"]

1. b3 {[%clk 0:03:01.4]} 1... Nf6 {[%clk 0:02:56.8]} 2. Bb2 {[%clk 0:03:03.3]}
2... e6 {[%clk 0:02:57.5]} 3. Nf3 {[%clk 0:03:05.2]} 3... d5 {[%clk 0:02:57.2]}
4. e3 {[%clk 0:03:06.6]} 4... c6 {[%clk 0:02:57.6]} 5. d4 {[%clk 0:03:08.2]}
5... Bd6 {[%clk 0:02:57.9]} 6. Nbd2 {[%clk 0:03:09.8]} 6... Nbd7 {[%clk
0:02:58.8]} 7. Bd3 {[%clk 0:03:11.3]} 7... O-O {[%clk 0:02:59.4]} 8. O-O {[%clk
0:03:12.4]} 8... Re8 {[%clk 0:02:54]} 9. e4 {[%clk 0:03:13.8]} 9... dxe4 {[%clk
0:02:50.5]} 10. Nxe4 {[%clk 0:03:15.7]} 10... Nxe4 {[%clk 0:02:50.8]} 11. Bxe4
{[%clk 0:03:17.6]} 11... Qc7 {[%clk 0:02:44.3]} 12. Re1 {[%clk 0:03:18.3]} 12...
Nf6 {[%clk 0:02:15.6]} 13. Bd3 {[%clk 0:03:19.4]} 13... Nd5 {[%clk 0:02:14.3]}
14. g3 {[%clk 0:03:10]} 14... c5 {[%clk 0:02:03.5]} 15. c4 {[%clk 0:03:10.7]}
15... Ne7 {[%clk 0:01:41.6]} 16. Bxh7+ {[%clk 0:03:10.8]} 16... Kxh7 {[%clk
0:01:40.5]} 17. Ng5+ {[%clk 0:03:12.4]} 17... Kg8 {[%clk 0:01:36]} 18. Qh5
{[%clk 0:03:13.6]} 18... Nf5 {[%clk 0:01:28.5]} 19. d5 {[%clk 0:03:09.6]} 19...
e5 {[%clk 0:01:24.3]} 20. f4 {[%clk 0:02:52.5]} 20... e4 {[%clk 0:00:59.6]} 21.
Qh7+ {[%clk 0:02:35.5]} 21... Kf8 {[%clk 0:00:59.1]} 22. Nxe4 {[%clk 0:02:11.1]}
1-0

[Event "*** Titled Tuesday Blitz"]
[Site "Chess.com"]
[Date "2018.05.01"]
[Round "9"]
[White "MikaelyanArman"]
[Black "jk13"]
[Result "0-1"]
[WhiteElo "2612"]
[BlackElo "2545"]
[TimeControl "180+2"]
[EndTime "14:57:58 PDT"]
[Termination "jk13 won by resignation"]

1. e4 {[%clk 0:03:01.9]} 1... e5 {[%clk 0:03:01.2]} 2. Nf3 {[%clk 0:02:59.3]}
2... Nc6 {[%clk 0:03:02.8]} 3. Bc4 {[%clk 0:03:00.1]} 3... Bc5 {[%clk
0:03:03.2]} 4. c3 {[%clk 0:03:00.4]} 4... Nf6 {[%clk 0:03:04.7]} 5. d4 {[%clk
0:03:00.3]} 5... exd4 {[%clk 0:03:04.9]} 6. e5 {[%clk 0:03:01.6]} 6... d5 {[%clk
0:03:05.1]} 7. Be2 {[%clk 0:03:01.9]} 7... Ne4 {[%clk 0:03:05.3]} 8. cxd4 {[%clk
0:03:03]} 8... Bb6 {[%clk 0:03:06.8]} 9. Nc3 {[%clk 0:03:02.5]} 9... Nxc3 {[%clk
0:03:08]} 10. bxc3 {[%clk 0:03:03.1]} 10... O-O {[%clk 0:03:09.9]} 11. O-O
{[%clk 0:03:04]} 11... f6 {[%clk 0:03:11.4]} 12. exf6 {[%clk 0:03:00]} 12...
Qxf6 {[%clk 0:03:11.9]} 13. Bg5 {[%clk 0:02:59.2]} 13... Qf7 {[%clk 0:03:08.7]}
14. Bh4 {[%clk 0:02:56.5]} 14... h6 {[%clk 0:03:06.4]} 15. Bg3 {[%clk
0:02:56.7]} 15... Bf5 {[%clk 0:03:05.9]} 16. Ne5 {[%clk 0:02:50.8]} 16... Nxe5
{[%clk 0:03:04.3]} 17. Bxe5 {[%clk 0:02:52.7]} 17... Rae8 {[%clk 0:03:02.8]} 18.
Bh5 {[%clk 0:02:52]} 18... Bg6 {[%clk 0:03:03.5]} 19. Bf3 {[%clk 0:02:51.6]}
19... c6 {[%clk 0:03:02.6]} 20. a4 {[%clk 0:02:51.3]} 20... Bc7 {[%clk 0:03:00]}
21. Bxc7 {[%clk 0:02:50.6]} 21... Qxc7 {[%clk 0:03:01.9]} 22. a5 {[%clk
0:02:50.1]} 22... Rf7 {[%clk 0:02:51.1]} 23. Bh5 {[%clk 0:02:46.8]} 23... Bxh5
{[%clk 0:02:43]} 24. Qxh5 {[%clk 0:02:48.7]} 24... Rfe7 {[%clk 0:02:42]} 25. h3
{[%clk 0:02:45.1]} 25... Qf4 {[%clk 0:02:39.4]} 26. a6 {[%clk 0:02:44.1]} 26...
b5 {[%clk 0:02:36.1]} 27. Qg6 {[%clk 0:02:43.6]} 27... Re6 {[%clk 0:02:36.2]}
28. Qd3 {[%clk 0:02:44.3]} 28... Re2 {[%clk 0:02:33.6]} 29. g3 {[%clk
0:02:37.3]} 29... Qd2 {[%clk 0:02:13.5]} 30. Qf3 {[%clk 0:02:32.3]} 30... Rf8
{[%clk 0:02:08.8]} 31. Qg2 {[%clk 0:02:25.5]} 31... Qxc3 {[%clk 0:02:06.6]} 32.
Rac1 {[%clk 0:02:26.2]} 32... Rc2 {[%clk 0:02:05.2]} 33. Rcd1 {[%clk 0:02:07.9]}
33... b4 {[%clk 0:01:55.4]} 34. h4 {[%clk 0:02:09]} 34... b3 {[%clk 0:01:50.3]}
35. Qh3 {[%clk 0:02:10]} 35... b2 {[%clk 0:01:45.9]} 36. Qe6+ {[%clk 0:02:10.5]}
36... Kh8 {[%clk 0:01:46.6]} 37. Qe7 {[%clk 0:02:11.6]} 37... Qf3 {[%clk
0:01:42.9]} 38. Rd3 {[%clk 0:01:57.3]} 38... Qxd3 {[%clk 0:01:38.3]} 39. Qxf8+
{[%clk 0:01:58.3]} 39... Kh7 {[%clk 0:01:39.9]} 40. Re1 {[%clk 0:01:58.2]} 40...
Rc1 {[%clk 0:01:39.3]} 0-1

[Event "*** Titled Tuesday Blitz"]
[Site "Chess.com"]
[Date "2018.05.01"]
[Round "9"]
[White "pultineviciuspaulius"]
[Black "Er_is_geen_hoop_meer"]
[Result "0-1"]
[WhiteElo "2525"]
[BlackElo "2376"]
[TimeControl "180+2"]
[EndTime "14:58:03 PDT"]
[Termination "Er_is_geen_hoop_meer won by resignation"]

1. d4 {[%clk 0:03:01.9]} 1... Nf6 {[%clk 0:02:57.1]} 2. c4 {[%clk 0:03:03.4]}
2... g6 {[%clk 0:02:57.7]} 3. Nc3 {[%clk 0:03:02.2]} 3... Bg7 {[%clk 0:02:59.1]}
4. e4 {[%clk 0:03:03.2]} 4... O-O {[%clk 0:03:00.5]} 5. Nf3 {[%clk 0:03:04.6]}
5... d6 {[%clk 0:03:01.5]} 6. Be2 {[%clk 0:03:05.3]} 6... e5 {[%clk 0:03:02.8]}
7. O-O {[%clk 0:03:06.9]} 7... Nc6 {[%clk 0:03:04.1]} 8. d5 {[%clk 0:03:08.3]}
8... Ne7 {[%clk 0:03:05.4]} 9. Ne1 {[%clk 0:03:09.5]} 9... Nd7 {[%clk
0:03:06.4]} 10. Be3 {[%clk 0:03:09.6]} 10... f5 {[%clk 0:03:07.4]} 11. f3 {[%clk
0:03:11.2]} 11... f4 {[%clk 0:03:08.8]} 12. Bf2 {[%clk 0:03:12.8]} 12... g5
{[%clk 0:03:10.3]} 13. Rc1 {[%clk 0:03:13.1]} 13... Nf6 {[%clk 0:03:10.4]} 14.
c5 {[%clk 0:03:14.3]} 14... Ng6 {[%clk 0:03:11.2]} 15. Nb5 {[%clk 0:03:14.6]}
15... a6 {[%clk 0:03:11.1]} 16. Na3 {[%clk 0:03:14.6]} 16... Rf7 {[%clk
0:03:06.8]} 17. Nc4 {[%clk 0:03:15.5]} 17... dxc5 {[%clk 0:02:59.1]} 18. Bxc5
{[%clk 0:03:13]} 18... b5 {[%clk 0:02:54.6]} 19. Na5 {[%clk 0:03:13.1]} 19...
Ne8 {[%clk 0:02:52]} 20. Nc6 {[%clk 0:03:13.2]} 20... Qf6 {[%clk 0:02:52.3]} 21.
a4 {[%clk 0:02:53.3]} 21... h5 {[%clk 0:02:49]} 22. axb5 {[%clk 0:02:54.2]}
22... axb5 {[%clk 0:02:50.9]} 23. Bxb5 {[%clk 0:02:55.3]} 23... g4 {[%clk
0:02:51.5]} 24. Bc4 {[%clk 0:02:53.8]} 24... Nd6 {[%clk 0:02:50.6]} 25. Bxd6
{[%clk 0:02:23.4]} 25... cxd6 {[%clk 0:02:52.5]} 26. Ra1 {[%clk 0:02:14.5]}
26... Rxa1 {[%clk 0:02:49.6]} 27. Qxa1 {[%clk 0:02:16.4]} 27... g3 {[%clk
0:02:46]} 28. Qa8 {[%clk 0:02:17]} 28... Rf8 {[%clk 0:02:44.8]} 29. Ba6 {[%clk
0:02:09.3]} 29... Qh4 {[%clk 0:02:42.1]} 30. h3 {[%clk 0:00:36.2]} 30... Bxh3
{[%clk 0:02:32.4]} 31. Qa7 {[%clk 0:00:25.9]} 31... Bxg2 {[%clk 0:02:31]} 0-1

[Event "*** Titled Tuesday Blitz"]
[Site "Chess.com"]
[Date "2018.05.01"]
[Round "9"]
[White "ChessicallyInclined"]
[Black "akretchetov"]
[Result "0-1"]
[WhiteElo "2209"]
[BlackElo "2354"]
[TimeControl "180+2"]
[EndTime "14:58:23 PDT"]
[Termination "akretchetov won by resignation"]

1. d4 {[%clk 0:03:01.9]} 1... d5 {[%clk 0:03:00.8]} 2. c4 {[%clk 0:03:02.3]}
2... c6 {[%clk 0:03:01]} 3. Nf3 {[%clk 0:02:59.6]} 3... Nf6 {[%clk 0:03:01.6]}
4. Nc3 {[%clk 0:02:59.5]} 4... g6 {[%clk 0:03:01.1]} 5. c5 {[%clk 0:02:55.4]}
5... Bg7 {[%clk 0:03:00.2]} 6. h3 {[%clk 0:02:56]} 6... O-O {[%clk 0:03:00.6]}
7. Bf4 {[%clk 0:02:56]} 7... b6 {[%clk 0:03:01.1]} 8. cxb6 {[%clk 0:02:54]} 8...
Qxb6 {[%clk 0:02:48.7]} 9. Qd2 {[%clk 0:02:51]} 9... Ne4 {[%clk 0:02:45.8]} 10.
Nxe4 {[%clk 0:02:43.7]} 10... dxe4 {[%clk 0:02:47]} 11. Ne5 {[%clk 0:02:45.3]}
11... c5 {[%clk 0:02:42.1]} 12. dxc5 {[%clk 0:02:41.7]} 12... Qxc5 {[%clk
0:02:38.6]} 13. Rc1 {[%clk 0:02:42.8]} 13... Qb6 {[%clk 0:02:23.2]} 14. Nc4
{[%clk 0:02:43.3]} 14... Qe6 {[%clk 0:02:10]} 15. e3 {[%clk 0:02:35.9]} 15...
Nc6 {[%clk 0:02:07.9]} 16. Be2 {[%clk 0:02:35.8]} 16... Rd8 {[%clk 0:02:06.3]}
17. Qc2 {[%clk 0:02:29.5]} 17... Nb4 {[%clk 0:01:59.5]} 18. Qb1 {[%clk
0:02:21.8]} 18... Ba6 {[%clk 0:01:48.2]} 19. O-O {[%clk 0:02:19.8]} 19... Nd3
{[%clk 0:01:42.7]} 20. Bxd3 {[%clk 0:02:17.7]} 20... exd3 {[%clk 0:01:44]} 21.
Nd2 {[%clk 0:02:15.6]} 21... Rac8 {[%clk 0:01:38.1]} 22. Rxc8 {[%clk 0:02:14.7]}
22... Rxc8 {[%clk 0:01:38.6]} 23. Rc1 {[%clk 0:02:16.2]} 23... Rxc1+ {[%clk
0:01:29.9]} 24. Qxc1 {[%clk 0:02:18.1]} 24... Qxa2 {[%clk 0:01:29.2]} 25. Qc7
{[%clk 0:02:06.7]} 25... Bxb2 {[%clk 0:00:54.8]} 26. Bh6 {[%clk 0:01:52.8]}
26... Qa1+ {[%clk 0:00:50.9]} 27. Nf1 {[%clk 0:01:50.5]} 27... Qxf1+ {[%clk
0:00:30.7]} 28. Kxf1 {[%clk 0:01:51]} 28... d2+ {[%clk 0:00:32]} 29. Kg1 {[%clk
0:01:51.1]} 29... d1=Q+ {[%clk 0:00:32]} 30. Kh2 {[%clk 0:01:52.4]} 30... Qd6+
{[%clk 0:00:32]} 0-1

[Event "*** Titled Tuesday Blitz"]
[Site "Chess.com"]
[Date "2018.05.01"]
[Round "9"]
[White "JSPrepz"]
[Black "Flawless2018"]
[Result "1-0"]
[WhiteElo "2639"]
[BlackElo "2496"]
[TimeControl "180+2"]
[EndTime "14:58:25 PDT"]
[Termination "JSPrepz won by resignation"]

1. e4 {[%clk 0:03:01.9]} 1... e5 {[%clk 0:02:59.7]} 2. Nc3 {[%clk 0:03:01.3]}
2... Nf6 {[%clk 0:03:00.1]} 3. f4 {[%clk 0:03:02.8]} 3... d5 {[%clk 0:03:00.6]}
4. fxe5 {[%clk 0:03:03.1]} 4... Nxe4 {[%clk 0:03:01.6]} 5. Qf3 {[%clk
0:03:04.4]} 5... Nxc3 {[%clk 0:02:57.6]} 6. bxc3 {[%clk 0:03:04.8]} 6... c5
{[%clk 0:02:59.1]} 7. Bb5+ {[%clk 0:03:05.8]} 7... Nc6 {[%clk 0:02:50.4]} 8. Qg3
{[%clk 0:03:06.5]} 8... Bf5 {[%clk 0:02:35.7]} 9. Nf3 {[%clk 0:02:49.5]} 9...
Qb6 {[%clk 0:02:16.7]} 10. a4 {[%clk 0:02:46.6]} 10... a6 {[%clk 0:02:12.5]} 11.
Bxc6+ {[%clk 0:02:47]} 11... Qxc6 {[%clk 0:02:07]} 12. O-O {[%clk 0:02:40]}
12... h6 {[%clk 0:01:55.1]} 13. d3 {[%clk 0:02:31.6]} 13... g5 {[%clk
0:01:46.2]} 14. Nxg5 {[%clk 0:02:24.5]} 14... hxg5 {[%clk 0:01:32.8]} 15. Rxf5
{[%clk 0:02:23.1]} 15... O-O-O {[%clk 0:00:50.9]} 16. Bxg5 {[%clk 0:02:23.1]}
16... Re8 {[%clk 0:00:38.1]} 17. Rxf7 {[%clk 0:02:19.9]} 17... Bh6 {[%clk
0:00:24.9]} 18. Raf1 {[%clk 0:02:11.3]} 18... Rhg8 {[%clk 0:00:22.2]} 19. R7f6
{[%clk 0:01:54]} 19... Re6 {[%clk 0:00:17.2]} 20. Qh3 {[%clk 0:01:45.9]} 20...
Kd7 {[%clk 0:00:09.6]} 21. Rxe6 {[%clk 0:01:40.8]} 21... Qxe6 {[%clk 0:00:10.1]}
22. Rf7+ {[%clk 0:01:42.3]} 1-0

[Event "*** Titled Tuesday Blitz"]
[Site "Chess.com"]
[Date "2018.05.01"]
[Round "9"]
[White "2Tilted"]
[Black "Abund"]
[Result "0-1"]
[WhiteElo "2288"]
[BlackElo "2513"]
[TimeControl "180+2"]
[EndTime "14:58:38 PDT"]
[Termination "Abund won by resignation"]

1. d4 {[%clk 0:03:01.9]} 1... Nf6 {[%clk 0:03:00]} 2. Nf3 {[%clk 0:03:03]} 2...
e6 {[%clk 0:02:58.6]} 3. c4 {[%clk 0:03:04]} 3... b6 {[%clk 0:02:59.2]} 4. g3
{[%clk 0:03:05]} 4... Ba6 {[%clk 0:03:00.2]} 5. Qc2 {[%clk 0:03:05.7]} 5... c5
{[%clk 0:03:00.7]} 6. d5 {[%clk 0:03:06.5]} 6... exd5 {[%clk 0:02:59.5]} 7. cxd5
{[%clk 0:03:06.6]} 7... Bb7 {[%clk 0:03:01.1]} 8. Bg2 {[%clk 0:03:06.3]} 8...
Nxd5 {[%clk 0:02:58.3]} 9. O-O {[%clk 0:03:05.9]} 9... Be7 {[%clk 0:02:56.8]}
10. Rd1 {[%clk 0:03:06.2]} 10... O-O {[%clk 0:02:50.8]} 11. e4 {[%clk
0:03:04.1]} 11... Nb4 {[%clk 0:02:47.3]} 12. Qb3 {[%clk 0:02:48.3]} 12... Bxe4
{[%clk 0:02:38.1]} 13. Na3 {[%clk 0:02:30.9]} 13... N8c6 {[%clk 0:02:33]} 14.
Be3 {[%clk 0:02:20.2]} 14... d5 {[%clk 0:02:28.5]} 15. Rac1 {[%clk 0:02:08]}
15... Bf6 {[%clk 0:02:23.8]} 16. Nb5 {[%clk 0:01:44]} 16... d4 {[%clk 0:02:09]}
17. a3 {[%clk 0:01:36.2]} 17... Bd5 {[%clk 0:02:06]} 18. Qa4 {[%clk 0:01:33.6]}
18... dxe3 {[%clk 0:01:43.1]} 19. axb4 {[%clk 0:01:34]} 19... exf2+ {[%clk
0:01:44.2]} 20. Kxf2 {[%clk 0:01:30.5]} 20... Nxb4 {[%clk 0:01:44.8]} 21. Nc3
{[%clk 0:01:25.5]} 21... Qd6 {[%clk 0:01:27.1]} 22. Nxd5 {[%clk 0:01:14.1]}
22... Nxd5 {[%clk 0:01:27.6]} 23. Qc4 {[%clk 0:01:10.4]} 23... Rad8 {[%clk
0:01:23.8]} 24. Nh4 {[%clk 0:01:07.4]} 24... Bd4+ {[%clk 0:01:23]} 25. Rxd4
{[%clk 0:00:50.8]} 25... cxd4 {[%clk 0:01:23.9]} 26. Nf5 {[%clk 0:00:51.9]}
26... Qf6 {[%clk 0:01:23.4]} 27. Bxd5 {[%clk 0:00:46]} 27... Qxf5+ {[%clk
0:01:22.9]} 28. Bf3 {[%clk 0:00:47.6]} 28... d3 {[%clk 0:01:23.2]} 29. Rd1
{[%clk 0:00:47.9]} 29... d2 {[%clk 0:01:23.7]} 0-1